[Event "Titled Tuesday Blitz March 15 Late 2022"]
[White "Golubev, Mikhail"]
[Black "Urazayev, Arystanbek"]
[WhiteFideId "14100983"]
[BlackFideId "13709810"]
[WhiteElo "2374"]
[BlackElo "2393"]
[Result "1/2-1/2"]
[Round "04"]
[TimeControl "180+1"]
[Date "2022.03.16"]
[WhiteClock "0:00:03"]
[BlackClock "0:00:41"]

1. e4 {[%clk 0:02:56]}  c6 {[%clk 0:02:59]} 2. d4 {[%clk 0:02:53]}  d5 {[%clk 0:02:59]} 3. e5 {[%clk 0:02:54]}  c5 {[%clk 0:03:00]} 4. dxc5 {[%clk 0:02:52]}  e6 {[%clk 0:03:00]} 5. Nf3 {[%clk 0:02:49]}  Bxc5 {[%clk 0:03:00]} 6. Bd3 {[%clk 0:02:49]}  f6 {[%clk 0:02:59]} 7. O-O {[%clk 0:02:48]}  Nc6 {[%clk 0:03:00]} 8. Re1 {[%clk 0:02:42]}  fxe5 {[%clk 0:03:00]} 9. Nxe5 {[%clk 0:02:36]}  Nf6 {[%clk 0:03:00]} 10. Nxc6 {[%clk 0:02:20]}  bxc6 {[%clk 0:03:01]} 11. Nd2 {[%clk 0:02:17]}  O-O {[%clk 0:03:01]} 12. Nf3 {[%clk 0:02:16]}  e5 {[%clk 0:02:49]} 13. Rxe5 {[%clk 0:02:08]}  Bg4 {[%clk 0:02:48]} 14. Be3 {[%clk 0:02:02]}  Bxf3 {[%clk 0:02:42]} 15. Qxf3 {[%clk 0:01:56]}  Ne4 {[%clk 0:02:39]} 16. Rf5 {[%clk 0:01:50]}  Rxf5 {[%clk 0:02:30]} 17. Qxf5 {[%clk 0:01:51]}  Bxe3 {[%clk 0:02:31]} 18. fxe3 {[%clk 0:01:51]}  Qb6 {[%clk 0:02:31]} 19. Re1 {[%clk 0:01:47]}  Nf6 {[%clk 0:02:13]} 20. Kh1 {[%clk 0:01:22]}  Re8 {[%clk 0:02:11]} 21. b3 {[%clk 0:01:04]}  Qa5 {[%clk 0:02:05]} 22. Rf1 {[%clk 0:01:00]}  Qxa2 {[%clk 0:02:03]} 23. g4 {[%clk 0:00:45]}  h6 {[%clk 0:01:55]} 24. h4 {[%clk 0:00:45]}  Qb2 {[%clk 0:00:37]} 25. g5 {[%clk 0:00:44]}  hxg5 {[%clk 0:00:38]} 26. hxg5 {[%clk 0:00:44]}  Re5 {[%clk 0:00:39]} 27. Qg6 {[%clk 0:00:20]}  Ne4 {[%clk 0:00:39]} 28. Qf7+ {[%clk 0:00:12]}  Kh7 {[%clk 0:00:40]} 29. Qh5+ {[%clk 0:00:08]}  Kg8 {[%clk 0:00:40]} 30. Qf7+ {[%clk 0:00:07]}  Kh7 {[%clk 0:00:40]} 31. Qh5+ {[%clk 0:00:06]}  Kg8 {[%clk 0:00:41]} 32. Qf7+ {[%clk 0:00:03]} 1/2-1/2


[Site "https://www.chess.com"]

[Event "Titled Tuesday Blitz March 15 Late 2022"]
[White "Goryachkina, Aleksandra"]
[Black "Peatman, Carter"]
[WhiteFideId "4147103"]
[BlackFideId "2096480"]
[WhiteElo "2426"]
[BlackElo "2437"]
[Result "1-0"]
[Round "04"]
[TimeControl "180+1"]
[Date "2022.03.16"]
[WhiteClock "0:01:29"]
[BlackClock "0:01:48"]

1. e4 {[%clk 0:02:59]}  c5 {[%clk 0:02:57]} 2. Nf3 {[%clk 0:02:59]}  d6 {[%clk 0:02:58]} 3. c3 {[%clk 0:02:57]}  Bg4 {[%clk 0:02:57]} 4. h3 {[%clk 0:02:47]}  Bh5 {[%clk 0:02:56]} 5. Be2 {[%clk 0:02:43]}  e6 {[%clk 0:02:56]} 6. O-O {[%clk 0:02:42]}  Nc6 {[%clk 0:02:56]} 7. d4 {[%clk 0:02:40]}  Nf6 {[%clk 0:02:51]} 8. d5 {[%clk 0:02:27]}  Bxf3 {[%clk 0:02:22]} 9. Bxf3 {[%clk 0:02:25]}  Ne5 {[%clk 0:02:21]} 10. dxe6 {[%clk 0:02:18]}  Nxf3+ {[%clk 0:02:20]} 11. Qxf3 {[%clk 0:02:17]}  fxe6 {[%clk 0:02:21]} 12. e5 {[%clk 0:02:16]}  Nd5 {[%clk 0:02:20]} 13. c4 {[%clk 0:02:14]}  Nb6 {[%clk 0:02:20]} 14. Qxb7 {[%clk 0:02:12]}  dxe5 {[%clk 0:02:19]} 15. Nc3 {[%clk 0:02:06]}  Be7 {[%clk 0:02:00]} 16. Rd1 {[%clk 0:01:58]}  Qc8 {[%clk 0:02:00]} 17. Qf3 {[%clk 0:01:56]}  Rf8 {[%clk 0:02:00]} 18. Qh5+ {[%clk 0:01:54]}  g6 {[%clk 0:02:00]} 19. Qxh7 {[%clk 0:01:48]}  Nxc4 {[%clk 0:01:49]} 20. Qxg6+ {[%clk 0:01:47]}  Rf7 {[%clk 0:01:50]} 21. Bh6 {[%clk 0:01:35]}  Bf8 {[%clk 0:01:49]} 22. b3 {[%clk 0:01:31]}  Nb6 {[%clk 0:01:48]} 23. Ne4 {[%clk 0:01:29]} 1-0


[Site "https://www.chess.com"]

[Event "Titled Tuesday Blitz March 15 Late 2022"]
[White "Hamley, Ryan"]
[Black "Gledura, Benjamin"]
[WhiteFideId "30959497"]
[BlackFideId "712779"]
[WhiteElo "2544"]
[BlackElo "2326"]
[Result "0-1"]
[Round "04"]
[TimeControl "180+1"]
[Date "2022.03.16"]
[WhiteClock "0:00:01"]
[BlackClock "0:00:23"]

1. d4 {[%clk 0:03:00]}  d5 {[%clk 0:02:58]} 2. Bf4 {[%clk 0:02:59]}  c5 {[%clk 0:02:58]} 3. e3 {[%clk 0:02:59]}  Nf6 {[%clk 0:02:54]} 4. Nd2 {[%clk 0:02:59]}  e6 {[%clk 0:02:54]} 5. Ngf3 {[%clk 0:02:58]}  Nc6 {[%clk 0:02:53]} 6. c3 {[%clk 0:02:58]}  Bd6 {[%clk 0:02:43]} 7. Bg3 {[%clk 0:02:56]}  O-O {[%clk 0:02:42]} 8. Bd3 {[%clk 0:02:56]}  Qc7 {[%clk 0:02:25]} 9. dxc5 {[%clk 0:02:44]}  Bxg3 {[%clk 0:02:22]} 10. hxg3 {[%clk 0:02:45]}  h6 {[%clk 0:02:21]} 11. b4 {[%clk 0:02:42]}  Rd8 {[%clk 0:02:08]} 12. Qe2 {[%clk 0:02:36]}  a5 {[%clk 0:02:02]} 13. b5 {[%clk 0:01:47]}  Ne7 {[%clk 0:01:54]} 14. O-O {[%clk 0:01:46]}  Qxc5 {[%clk 0:01:54]} 15. c4 {[%clk 0:01:43]}  Bd7 {[%clk 0:01:46]} 16. Rfc1 {[%clk 0:01:41]}  Qa7 {[%clk 0:01:31]} 17. Ne5 {[%clk 0:01:36]}  Be8 {[%clk 0:01:31]} 18. c5 {[%clk 0:01:30]}  Rac8 {[%clk 0:01:30]} 19. b6 {[%clk 0:01:11]}  Qb8 {[%clk 0:01:29]} 20. Ndf3 {[%clk 0:01:08]}  Ne4 {[%clk 0:01:25]} 21. Bb5 {[%clk 0:00:30]}  Nxc5 {[%clk 0:01:24]} 22. Bxe8 {[%clk 0:00:30]}  Rxe8 {[%clk 0:01:24]} 23. Qb5 {[%clk 0:00:30]}  Qd6 {[%clk 0:01:15]} 24. Qxa5 {[%clk 0:00:29]}  f6 {[%clk 0:01:15]} 25. Ng4 {[%clk 0:00:20]}  h5 {[%clk 0:01:15]} 26. Ngh2 {[%clk 0:00:20]}  Nd3 {[%clk 0:01:09]} 27. Rxc8 {[%clk 0:00:20]}  Rxc8 {[%clk 0:01:10]} 28. Qd2 {[%clk 0:00:21]}  Nc5 {[%clk 0:01:07]} 29. Rb1 {[%clk 0:00:18]}  Ne4 {[%clk 0:01:06]} 30. Qa5 {[%clk 0:00:15]}  Nf5 {[%clk 0:01:05]} 31. Nf1 {[%clk 0:00:15]}  Rc2 {[%clk 0:01:04]} 32. Qa8+ {[%clk 0:00:14]}  Kh7 {[%clk 0:01:03]} 33. Qxb7 {[%clk 0:00:15]}  Nxf2 {[%clk 0:00:47]} 34. Qf7 {[%clk 0:00:14]}  Nh6 {[%clk 0:00:36]} 35. Qxh5 {[%clk 0:00:12]}  Ne4 {[%clk 0:00:36]} 36. b7 {[%clk 0:00:10]}  Nxg3 {[%clk 0:00:37]} 37. Nxg3 {[%clk 0:00:05]}  Qxg3 {[%clk 0:00:36]} 38. Qh3 {[%clk 0:00:05]}  Qf2+ {[%clk 0:00:34]} 39. Kh1 {[%clk 0:00:05]}  Rb2 {[%clk 0:00:34]} 40. Rxb2 {[%clk 0:00:01]}  Qxb2 {[%clk 0:00:34]} 41. Qxe6 {[%clk 0:00:02]}  Qb1+ {[%clk 0:00:33]} 42. Kh2 {[%clk 0:00:02]}  Qxb7 {[%clk 0:00:34]} 43. Nd4 {[%clk 0:00:01]}  Qb8+ {[%clk 0:00:27]} 44. Kh1 {[%clk 0:00:01]}  Qg3 {[%clk 0:00:25]} 45. Qxd5 {[%clk 0:00:01]}  Qxe3 {[%clk 0:00:23]} 0-1


[Site "https://www.chess.com"]

[Event "Titled Tuesday Blitz March 15 Late 2022"]
[White "Hess, Robert"]
[Black "Donchenko, Alexander"]
[WhiteFideId "2022036"]
[BlackFideId "24603295"]
[WhiteElo "2557"]
[BlackElo "2539"]
[Result "1-0"]
[Round "04"]
[TimeControl "180+1"]
[Date "2022.03.15"]
[WhiteClock "0:00:06"]
[BlackClock "0:00:05"]

1. b3 {[%clk 0:02:56]}  Nf6 {[%clk 0:02:59]} 2. Bb2 {[%clk 0:02:57]}  g6 {[%clk 0:03:00]} 3. d3 {[%clk 0:02:57]}  Bg7 {[%clk 0:03:00]} 4. Nd2 {[%clk 0:02:58]}  O-O {[%clk 0:03:00]} 5. e3 {[%clk 0:02:59]}  c5 {[%clk 0:03:00]} 6. Ne2 {[%clk 0:02:59]}  Nc6 {[%clk 0:03:00]} 7. h3 {[%clk 0:03:00]}  d5 {[%clk 0:03:00]} 8. g4 {[%clk 0:03:00]}  e5 {[%clk 0:02:58]} 9. Bg2 {[%clk 0:03:01]}  h5 {[%clk 0:02:58]} 10. g5 {[%clk 0:02:54]}  Ne8 {[%clk 0:02:59]} 11. h4 {[%clk 0:02:51]}  Bg4 {[%clk 0:02:58]} 12. Qc1 {[%clk 0:02:27]}  Qd7 {[%clk 0:02:50]} 13. Ng3 {[%clk 0:02:19]}  Nc7 {[%clk 0:02:48]} 14. a3 {[%clk 0:02:15]}  Rfe8 {[%clk 0:02:45]} 15. Ndf1 {[%clk 0:01:59]}  Rad8 {[%clk 0:02:36]} 16. Qd2 {[%clk 0:01:58]}  b5 {[%clk 0:02:31]} 17. Nh2 {[%clk 0:01:34]}  Bh3 {[%clk 0:02:29]} 18. Bf3 {[%clk 0:01:31]}  a5 {[%clk 0:02:16]} 19. Rg1 {[%clk 0:01:20]}  d4 {[%clk 0:02:05]} 20. Ne4 {[%clk 0:01:14]}  Qe7 {[%clk 0:02:00]} 21. Nf6+ {[%clk 0:01:04]}  Bxf6 {[%clk 0:02:00]} 22. Bxc6 {[%clk 0:01:04]}  Bg7 {[%clk 0:01:53]} 23. Bxe8 {[%clk 0:01:04]}  Rxe8 {[%clk 0:01:53]} 24. e4 {[%clk 0:00:56]}  Ra8 {[%clk 0:01:44]} 25. a4 {[%clk 0:00:54]}  b4 {[%clk 0:01:43]} 26. O-O-O {[%clk 0:00:49]}  Ne6 {[%clk 0:01:43]} 27. Kb1 {[%clk 0:00:40]}  Nf4 {[%clk 0:01:41]} 28. Bc1 {[%clk 0:00:40]}  Bd7 {[%clk 0:01:38]} 29. Qe1 {[%clk 0:00:36]}  Ne6 {[%clk 0:01:36]} 30. Nf3 {[%clk 0:00:35]}  Qd6 {[%clk 0:01:27]} 31. Nd2 {[%clk 0:00:35]}  Qc7 {[%clk 0:01:27]} 32. Nc4 {[%clk 0:00:35]}  Re8 {[%clk 0:01:19]} 33. f3 {[%clk 0:00:32]}  Bc8 {[%clk 0:01:17]} 34. Qg3 {[%clk 0:00:29]}  Bd7 {[%clk 0:01:14]} 35. Rdf1 {[%clk 0:00:26]}  Nf4 {[%clk 0:01:13]} 36. Re1 {[%clk 0:00:21]}  Nh3 {[%clk 0:01:09]} 37. Rgf1 {[%clk 0:00:17]}  Nf4 {[%clk 0:01:08]} 38. Qh2 {[%clk 0:00:17]}  Bc6 {[%clk 0:00:57]} 39. Rf2 {[%clk 0:00:11]}  Re6 {[%clk 0:00:56]} 40. Bxf4 {[%clk 0:00:11]}  exf4 {[%clk 0:00:56]} 41. e5 {[%clk 0:00:12]}  Bxe5 {[%clk 0:00:55]} 42. Rfe2 {[%clk 0:00:11]}  Bg7 {[%clk 0:00:46]} 43. Rxe6 {[%clk 0:00:12]}  fxe6 {[%clk 0:00:46]} 44. Rxe6 {[%clk 0:00:13]}  Kh7 {[%clk 0:00:39]} 45. Rd6 {[%clk 0:00:08]}  Bxf3 {[%clk 0:00:30]} 46. Qxf4 {[%clk 0:00:08]}  Bg4 {[%clk 0:00:26]} 47. Rf6 {[%clk 0:00:07]}  Qe7 {[%clk 0:00:22]} 48. Rf7 {[%clk 0:00:07]}  Qe1+ {[%clk 0:00:22]} 49. Ka2 {[%clk 0:00:06]}  Be6 {[%clk 0:00:17]} 50. Re7 {[%clk 0:00:05]}  Qe2 {[%clk 0:00:16]} 51. Qd2 {[%clk 0:00:03]}  Qg4 {[%clk 0:00:15]} 52. Ne5 {[%clk 0:00:02]}  Qf5 {[%clk 0:00:13]} 53. Nc6 {[%clk 0:00:02]}  Kh8 {[%clk 0:00:12]} 54. Qe2 {[%clk 0:00:03]}  Bd5 {[%clk 0:00:10]} 55. Nd8 {[%clk 0:00:03]}  Qg4 {[%clk 0:00:08]} 56. Nf7+ {[%clk 0:00:03]}  Kg8 {[%clk 0:00:04]} 57. Nh6+ {[%clk 0:00:03]}  Bxh6 {[%clk 0:00:04]} 58. gxh6 {[%clk 0:00:04]}  Qxe2 {[%clk 0:00:04]} 59. Rxe2 {[%clk 0:00:05]}  Kh7 {[%clk 0:00:05]} 60. Re5 {[%clk 0:00:05]}  Bf3 {[%clk 0:00:04]} 61. Rxc5 {[%clk 0:00:06]}  Kxh6 {[%clk 0:00:05]} 62. Rxa5 {[%clk 0:00:06]}  Kg7 {[%clk 0:00:04]} 63. Rg5 {[%clk 0:00:06]}  Kf6 {[%clk 0:00:04]} 64. a5 {[%clk 0:00:06]}  Bb7 {[%clk 0:00:05]} 65. Rb5 {[%clk 0:00:06]}  Bf3 {[%clk 0:00:04]} 66. a6 {[%clk 0:00:06]}  g5 {[%clk 0:00:05]} 67. Rxg5 {[%clk 0:00:05]}  Ke6 {[%clk 0:00:05]} 68. a7 {[%clk 0:00:06]} 1-0


[Site "https://www.chess.com"]

[Event "Titled Tuesday Blitz March 15 Late 2022"]
[White "Hoffmann, Asa"]
[Black "Ardila, Oscar Humberto"]
[WhiteFideId "2001470"]
[BlackFideId "4404742"]
[WhiteElo "2117"]
[BlackElo "1966"]
[Result "1-0"]
[Round "04"]
[TimeControl "180+1"]
[Date "2022.03.16"]
[WhiteClock "0:00:48"]
[BlackClock "0:00:05"]

1. d4 {[%clk 0:02:56]}  Nf6 {[%clk 0:02:59]} 2. Bg5 {[%clk 0:02:53]}  e6 {[%clk 0:02:59]} 3. Nd2 {[%clk 0:02:52]}  Be7 {[%clk 0:02:59]} 4. e3 {[%clk 0:02:52]}  d6 {[%clk 0:02:59]} 5. Bd3 {[%clk 0:02:51]}  Nbd7 {[%clk 0:02:59]} 6. f4 {[%clk 0:02:51]}  h6 {[%clk 0:03:00]} 7. Bh4 {[%clk 0:02:51]}  c5 {[%clk 0:02:59]} 8. c3 {[%clk 0:02:51]}  Qc7 {[%clk 0:02:59]} 9. Ngf3 {[%clk 0:02:50]}  a6 {[%clk 0:02:57]} 10. O-O {[%clk 0:02:50]}  b5 {[%clk 0:02:57]} 11. e4 {[%clk 0:02:47]}  Bb7 {[%clk 0:02:50]} 12. Qe2 {[%clk 0:02:46]}  O-O {[%clk 0:02:19]} 13. Rac1 {[%clk 0:02:45]}  Rfe8 {[%clk 0:02:12]} 14. h3 {[%clk 0:02:40]}  Qa5 {[%clk 0:02:10]} 15. a3 {[%clk 0:02:39]}  Rac8 {[%clk 0:02:06]} 16. Bf2 {[%clk 0:02:32]}  Nh5 {[%clk 0:01:42]} 17. g3 {[%clk 0:02:27]}  Nhf6 {[%clk 0:01:41]} 18. e5 {[%clk 0:02:24]}  dxe5 {[%clk 0:01:36]} 19. fxe5 {[%clk 0:02:24]}  Nd5 {[%clk 0:01:34]} 20. c4 {[%clk 0:02:15]}  bxc4 {[%clk 0:01:20]} 21. Nxc4 {[%clk 0:02:14]}  Qc7 {[%clk 0:01:16]} 22. Qe4 {[%clk 0:02:09]}  Nf8 {[%clk 0:01:15]} 23. Qg4 {[%clk 0:02:04]}  cxd4 {[%clk 0:01:09]} 24. Bxd4 {[%clk 0:01:57]}  Bc5 {[%clk 0:00:58]} 25. Kh2 {[%clk 0:01:48]}  Bxd4 {[%clk 0:00:55]} 26. Qxd4 {[%clk 0:01:41]}  Qc5 {[%clk 0:00:36]} 27. Nd6 {[%clk 0:01:39]}  Qxd4 {[%clk 0:00:29]} 28. Nxd4 {[%clk 0:01:39]}  Ne3 {[%clk 0:00:21]} 29. Rfe1 {[%clk 0:01:20]}  Rxc1 {[%clk 0:00:16]} 30. Rxc1 {[%clk 0:01:20]}  Rb8 {[%clk 0:00:15]} 31. Rc7 {[%clk 0:01:13]}  Bd5 {[%clk 0:00:15]} 32. b4 {[%clk 0:01:11]}  a5 {[%clk 0:00:14]} 33. b5 {[%clk 0:01:10]}  Ng6 {[%clk 0:00:13]} 34. Nxf7 {[%clk 0:01:06]}  Nf8 {[%clk 0:00:08]} 35. Nd6 {[%clk 0:00:59]}  Bf3 {[%clk 0:00:07]} 36. Nxf3 {[%clk 0:00:58]}  Nd5 {[%clk 0:00:07]} 37. b6 {[%clk 0:00:56]}  Nxb6 {[%clk 0:00:05]} 38. Be4 {[%clk 0:00:54]}  Nd5 {[%clk 0:00:05]} 39. Bxd5 {[%clk 0:00:53]}  exd5 {[%clk 0:00:06]} 40. Nd4 {[%clk 0:00:53]}  Rb2+ {[%clk 0:00:06]} 41. Kg1 {[%clk 0:00:53]}  Ng6 {[%clk 0:00:06]} 42. e6 {[%clk 0:00:52]}  Rd2 {[%clk 0:00:05]} 43. N4f5 {[%clk 0:00:50]}  Re2 {[%clk 0:00:05]} 44. Rxg7+ {[%clk 0:00:49]}  Kf8 {[%clk 0:00:04]} 45. Rxg6 {[%clk 0:00:49]}  d4 {[%clk 0:00:05]} 46. e7+ {[%clk 0:00:48]} 1-0


[Site "https://www.chess.com"]

[Event "Titled Tuesday Blitz March 15 Late 2022"]
[White "Holt, Conrad"]
[Black "Niemann, Hans Moke"]
[WhiteFideId "2034387"]
[BlackFideId "2093596"]
[WhiteElo "2586"]
[BlackElo "2632"]
[Result "1-0"]
[Round "04"]
[TimeControl "180+1"]
[Date "2022.03.15"]
[WhiteClock "0:00:40"]
[BlackClock "0:00:03"]

1. d4 {[%clk 0:02:58]}  g6 {[%clk 0:02:58]} 2. c4 {[%clk 0:02:58]}  Bg7 {[%clk 0:02:55]} 3. Nf3 {[%clk 0:02:58]}  d6 {[%clk 0:02:53]} 4. e4 {[%clk 0:02:58]}  Bg4 {[%clk 0:02:53]} 5. Be2 {[%clk 0:02:58]}  Nc6 {[%clk 0:02:50]} 6. Nbd2 {[%clk 0:02:57]}  e5 {[%clk 0:02:43]} 7. d5 {[%clk 0:02:50]}  Nce7 {[%clk 0:02:41]} 8. O-O {[%clk 0:02:42]}  h6 {[%clk 0:02:35]} 9. Ne1 {[%clk 0:02:41]}  Bd7 {[%clk 0:02:32]} 10. c5 {[%clk 0:02:34]}  Nf6 {[%clk 0:02:22]} 11. Nd3 {[%clk 0:02:29]}  O-O {[%clk 0:02:21]} 12. Qb3 {[%clk 0:02:27]}  b6 {[%clk 0:02:20]} 13. c6 {[%clk 0:02:27]}  Bc8 {[%clk 0:02:19]} 14. Qa4 {[%clk 0:02:13]}  a6 {[%clk 0:02:05]} 15. b4 {[%clk 0:02:11]}  Nfxd5 {[%clk 0:01:57]} 16. exd5 {[%clk 0:02:11]}  e4 {[%clk 0:01:58]} 17. Nxe4 {[%clk 0:02:12]}  Bxa1 {[%clk 0:01:58]} 18. Bxh6 {[%clk 0:02:11]}  Bg7 {[%clk 0:01:59]} 19. Bxg7 {[%clk 0:02:08]}  Kxg7 {[%clk 0:02:00]} 20. Qb3 {[%clk 0:02:07]}  Bf5 {[%clk 0:01:52]} 21. Qb2+ {[%clk 0:02:06]}  f6 {[%clk 0:01:52]} 22. Nf4 {[%clk 0:02:04]}  Qe8 {[%clk 0:01:40]} 23. Ng3 {[%clk 0:02:03]}  Bc8 {[%clk 0:01:38]} 24. Bd3 {[%clk 0:01:59]}  Qf7 {[%clk 0:01:37]} 25. Re1 {[%clk 0:01:57]}  Re8 {[%clk 0:01:31]} 26. h3 {[%clk 0:01:48]}  Kg8 {[%clk 0:00:58]} 27. Re3 {[%clk 0:01:42]}  f5 {[%clk 0:00:49]} 28. Qe2 {[%clk 0:01:31]}  Kf8 {[%clk 0:00:45]} 29. h4 {[%clk 0:01:26]}  Ng8 {[%clk 0:00:37]} 30. h5 {[%clk 0:01:20]}  Rxe3 {[%clk 0:00:26]} 31. Qxe3 {[%clk 0:01:20]}  gxh5 {[%clk 0:00:25]} 32. Ngxh5 {[%clk 0:01:06]}  b5 {[%clk 0:00:19]} 33. g4 {[%clk 0:01:02]}  Ne7 {[%clk 0:00:14]} 34. Qd4 {[%clk 0:00:57]}  a5 {[%clk 0:00:07]} 35. Qh8+ {[%clk 0:00:52]}  Ng8 {[%clk 0:00:07]} 36. g5 {[%clk 0:00:51]}  Ke7 {[%clk 0:00:03]} 37. g6 {[%clk 0:00:50]}  Qf8 {[%clk 0:00:04]} 38. Qh7+ {[%clk 0:00:47]}  Kd8 {[%clk 0:00:03]} 39. Qf7 {[%clk 0:00:43]}  Qe8 {[%clk 0:00:03]} 40. Ng7 {[%clk 0:00:40]} 1-0


[Site "https://www.chess.com"]

[Event "Titled Tuesday Blitz March 15 Late 2022"]
[White "Jeet, Jain"]
[Black "Thavandiran, Shiyam"]
[WhiteFideId "5073022"]
[BlackFideId "2605058"]
[WhiteElo "2085"]
[BlackElo "2357"]
[Result "1/2-1/2"]
[Round "04"]
[TimeControl "180+1"]
[Date "2022.03.16"]
[WhiteClock "0:00:08"]
[BlackClock "0:00:10"]

1. d4 {[%clk 0:03:00]}  e6 {[%clk 0:02:57]} 2. Nf3 {[%clk 0:02:58]}  Nf6 {[%clk 0:02:57]} 3. Bf4 {[%clk 0:02:58]}  c5 {[%clk 0:02:55]} 4. c3 {[%clk 0:02:58]}  Nc6 {[%clk 0:02:54]} 5. e3 {[%clk 0:02:59]}  d5 {[%clk 0:02:53]} 6. Nbd2 {[%clk 0:02:58]}  Qb6 {[%clk 0:02:53]} 7. Qb3 {[%clk 0:02:58]}  Be7 {[%clk 0:02:50]} 8. Be2 {[%clk 0:02:51]}  h6 {[%clk 0:02:48]} 9. h3 {[%clk 0:02:48]}  O-O {[%clk 0:02:39]} 10. O-O {[%clk 0:02:47]}  Bd7 {[%clk 0:02:28]} 11. Qxb6 {[%clk 0:02:46]}  axb6 {[%clk 0:02:29]} 12. Bc7 {[%clk 0:02:46]}  Bd8 {[%clk 0:02:26]} 13. Bxd8 {[%clk 0:02:46]}  Rfxd8 {[%clk 0:02:27]} 14. a3 {[%clk 0:02:44]}  Ne8 {[%clk 0:02:22]} 15. c4 {[%clk 0:02:38]}  cxd4 {[%clk 0:02:09]} 16. cxd5 {[%clk 0:02:38]}  exd5 {[%clk 0:02:08]} 17. Nxd4 {[%clk 0:02:17]}  Nxd4 {[%clk 0:01:59]} 18. exd4 {[%clk 0:02:17]}  Nd6 {[%clk 0:02:00]} 19. Rfc1 {[%clk 0:02:03]}  Rdc8 {[%clk 0:01:57]} 20. Bf3 {[%clk 0:02:02]}  Be6 {[%clk 0:01:52]} 21. Kf1 {[%clk 0:01:58]}  Kf8 {[%clk 0:01:50]} 22. Ke2 {[%clk 0:01:57]}  Ke7 {[%clk 0:01:49]} 23. g4 {[%clk 0:01:46]}  Nb5 {[%clk 0:01:23]} 24. Kd3 {[%clk 0:01:42]}  Kd6 {[%clk 0:01:20]} 25. Nb3 {[%clk 0:01:18]}  Rc4 {[%clk 0:01:10]} 26. Be2 {[%clk 0:01:08]}  Re8 {[%clk 0:00:42]} 27. Kd2 {[%clk 0:01:03]}  Rxd4+ {[%clk 0:00:27]} 28. Nxd4 {[%clk 0:01:03]}  Nxd4 {[%clk 0:00:28]} 29. Bd1 {[%clk 0:01:02]}  Bd7 {[%clk 0:00:27]} 30. Kd3 {[%clk 0:01:00]}  Ne6 {[%clk 0:00:27]} 31. Kd2 {[%clk 0:00:55]}  Nc5 {[%clk 0:00:27]} 32. f3 {[%clk 0:00:54]}  Ne6 {[%clk 0:00:12]} 33. b4 {[%clk 0:00:53]}  g5 {[%clk 0:00:12]} 34. a4 {[%clk 0:00:52]}  Nf4 {[%clk 0:00:13]} 35. a5 {[%clk 0:00:52]}  bxa5 {[%clk 0:00:13]} 36. bxa5 {[%clk 0:00:50]}  Bb5 {[%clk 0:00:13]} 37. Rcb1 {[%clk 0:00:50]}  Ba6 {[%clk 0:00:14]} 38. Rb6+ {[%clk 0:00:48]}  Kc7 {[%clk 0:00:10]} 39. Rxh6 {[%clk 0:00:48]}  d4 {[%clk 0:00:09]} 40. Rc1+ {[%clk 0:00:48]}  Kb8 {[%clk 0:00:09]} 41. Rd6 {[%clk 0:00:48]}  d3 {[%clk 0:00:03]} 42. Rh6 {[%clk 0:00:43]}  Ne6 {[%clk 0:00:01]} 43. h4 {[%clk 0:00:41]}  gxh4 {[%clk 0:00:01]} 44. Rxh4 {[%clk 0:00:42]}  Nf4 {[%clk 0:00:02]} 45. g5 {[%clk 0:00:41]}  Ng2 {[%clk 0:00:02]} 46. Re4 {[%clk 0:00:40]}  Rh8 {[%clk 0:00:02]} 47. Bb3 {[%clk 0:00:31]}  Rh2 {[%clk 0:00:02]} 48. Kc3 {[%clk 0:00:28]}  Nh4 {[%clk 0:00:03]} 49. Bc4 {[%clk 0:00:18]}  d2 {[%clk 0:00:03]} 50. Rd1 {[%clk 0:00:18]}  Bxc4 {[%clk 0:00:03]} 51. Rxc4 {[%clk 0:00:15]}  Nxf3 {[%clk 0:00:04]} 52. Rf4 {[%clk 0:00:15]}  Rh3 {[%clk 0:00:05]} 53. Kb4 {[%clk 0:00:10]}  Nxg5 {[%clk 0:00:05]} 54. Rxd2 {[%clk 0:00:09]}  Rh7 {[%clk 0:00:05]} 55. Rd7 {[%clk 0:00:08]}  Ne6 {[%clk 0:00:06]} 56. Rfxf7 {[%clk 0:00:07]}  Rh4+ {[%clk 0:00:06]} 57. Ka3 {[%clk 0:00:07]}  Nc5 {[%clk 0:00:06]} 58. Rde7 {[%clk 0:00:06]}  Ra4+ {[%clk 0:00:05]} 59. Kb2 {[%clk 0:00:07]}  Rxa5 {[%clk 0:00:06]} 60. Rf8+ {[%clk 0:00:05]}  Ka7 {[%clk 0:00:07]} 61. Rff7 {[%clk 0:00:06]}  Rb5+ {[%clk 0:00:07]} 62. Kc3 {[%clk 0:00:07]}  Na6 {[%clk 0:00:08]} 63. Kc4 {[%clk 0:00:06]}  Rc5+ {[%clk 0:00:08]} 64. Kb3 {[%clk 0:00:06]}  Rb5+ {[%clk 0:00:09]} 65. Kc4 {[%clk 0:00:07]}  Rb4+ {[%clk 0:00:09]} 66. Kc3 {[%clk 0:00:07]}  Rb6 {[%clk 0:00:10]} 67. Rh7 {[%clk 0:00:07]}  Nb8 {[%clk 0:00:10]} 68. Rxb7+ {[%clk 0:00:07]}  Rxb7 {[%clk 0:00:09]} 69. Rxb7+ {[%clk 0:00:08]}  Kxb7 {[%clk 0:00:10]} 1/2-1/2


[Site "https://www.chess.com"]